[Event "Titled Tuesday Blitz May 4 2021"]
[White "Vargas, Gabriela"]
[Black "Kononenko, Dmitry"]
[WhiteFideId "3700860"]
[BlackFideId "14113538"]
[WhiteElo "2116"]
[BlackElo "2289"]
[Result "0-1"]
[Round "07"]
[TimeControl "180+1"]
[Date "2021.05.04"]
[WhiteClock "0:00:07"]
[BlackClock "0:00:21"]

1. d4 {[%clk 0:03:00]}  d5 {[%clk 0:02:55]} 2. Nf3 {[%clk 0:03:00]}  Nf6 {[%clk 0:02:53]} 3. Bg5 {[%clk 0:03:00]}  Ne4 {[%clk 0:02:52]} 4. Bf4 {[%clk 0:03:00]}  g6 {[%clk 0:02:51]} 5. e3 {[%clk 0:03:00]}  Bg7 {[%clk 0:02:52]} 6. Bd3 {[%clk 0:03:00]}  O-O {[%clk 0:02:52]} 7. Nbd2 {[%clk 0:03:00]}  Nd6 {[%clk 0:02:50]} 8. O-O {[%clk 0:02:58]}  b6 {[%clk 0:02:48]} 9. c3 {[%clk 0:02:51]}  c5 {[%clk 0:02:48]} 10. a4 {[%clk 0:02:46]}  Bf5 {[%clk 0:02:38]} 11. Bxf5 {[%clk 0:02:45]}  Nxf5 {[%clk 0:02:37]} 12. a5 {[%clk 0:02:31]}  Nd7 {[%clk 0:02:37]} 13. Qb3 {[%clk 0:02:18]}  Nf6 {[%clk 0:02:31]} 14. axb6 {[%clk 0:02:16]}  Qxb6 {[%clk 0:02:27]} 15. Qxb6 {[%clk 0:02:15]}  axb6 {[%clk 0:02:27]} 16. h3 {[%clk 0:02:15]}  Nd7 {[%clk 0:02:17]} 17. g4 {[%clk 0:02:09]}  Nd6 {[%clk 0:02:14]} 18. Ne5 {[%clk 0:01:38]}  Nxe5 {[%clk 0:02:09]} 19. dxe5 {[%clk 0:01:39]}  Nb7 {[%clk 0:02:00]} 20. e4 {[%clk 0:01:34]}  e6 {[%clk 0:01:50]} 21. exd5 {[%clk 0:01:32]}  exd5 {[%clk 0:01:51]} 22. Nf3 {[%clk 0:01:27]}  Na5 {[%clk 0:01:46]} 23. b4 {[%clk 0:01:20]}  Nc6 {[%clk 0:01:42]} 24. bxc5 {[%clk 0:01:20]}  bxc5 {[%clk 0:01:43]} 25. Rxa8 {[%clk 0:01:19]}  Rxa8 {[%clk 0:01:42]} 26. Rd1 {[%clk 0:01:20]}  Rd8 {[%clk 0:01:39]} 27. Kg2 {[%clk 0:01:12]}  d4 {[%clk 0:01:29]} 28. cxd4 {[%clk 0:01:12]}  Nxd4 {[%clk 0:01:22]} 29. Nxd4 {[%clk 0:01:12]}  cxd4 {[%clk 0:01:23]} 30. Rd3 {[%clk 0:01:07]}  f6 {[%clk 0:00:56]} 31. e6 {[%clk 0:00:42]}  Kf8 {[%clk 0:00:53]} 32. Bc7 {[%clk 0:00:38]}  Rd5 {[%clk 0:00:51]} 33. Kf3 {[%clk 0:00:30]}  f5 {[%clk 0:00:50]} 34. gxf5 {[%clk 0:00:30]}  gxf5 {[%clk 0:00:50]} 35. Bf4 {[%clk 0:00:16]}  Ke7 {[%clk 0:00:48]} 36. Bg5+ {[%clk 0:00:15]}  Kxe6 {[%clk 0:00:46]} 37. Bf4 {[%clk 0:00:15]}  Rc5 {[%clk 0:00:38]} 38. Ke2 {[%clk 0:00:12]}  Kd5 {[%clk 0:00:31]} 39. f3 {[%clk 0:00:12]}  Rc2+ {[%clk 0:00:29]} 40. Rd2 {[%clk 0:00:12]}  Rxd2+ {[%clk 0:00:25]} 41. Kxd2 {[%clk 0:00:13]}  Kc4 {[%clk 0:00:25]} 42. Kc2 {[%clk 0:00:11]}  d3+ {[%clk 0:00:25]} 43. Kd2 {[%clk 0:00:12]}  Bc3+ {[%clk 0:00:25]} 44. Kd1 {[%clk 0:00:12]}  Bb4 {[%clk 0:00:20]} 45. Bg5 {[%clk 0:00:11]}  Bc5 {[%clk 0:00:19]} 46. Bf4 {[%clk 0:00:11]}  Bd4 {[%clk 0:00:18]} 47. Kd2 {[%clk 0:00:11]}  Bc3+ {[%clk 0:00:19]} 48. Kd1 {[%clk 0:00:11]}  Kd5 {[%clk 0:00:19]} 49. Bg3 {[%clk 0:00:07]}  Kd4 {[%clk 0:00:18]} 50. Bf4 {[%clk 0:00:08]}  Kd5 {[%clk 0:00:18]} 51. Bg5 {[%clk 0:00:08]}  Ke6 {[%clk 0:00:19]} 52. Bf4 {[%clk 0:00:08]}  Kf7 {[%clk 0:00:20]} 53. Bg5 {[%clk 0:00:08]}  Kg6 {[%clk 0:00:20]} 54. Bf4 {[%clk 0:00:09]}  Kh5 {[%clk 0:00:21]} 55. Kc1 {[%clk 0:00:08]}  Kh4 {[%clk 0:00:20]} 56. Kd1 {[%clk 0:00:07]}  Kxh3 {[%clk 0:00:21]} 0-1


[Site "https://www.chess.com"]

[Event "Titled Tuesday Blitz May 4 2021"]
[White "Vasquez Schroeder, Rodrigo"]
[Black "Manolache, Marius"]
[WhiteFideId "3400042"]
[BlackFideId "1201530"]
[WhiteElo "2572"]
[BlackElo "2391"]
[Result "1-0"]
[Round "07"]
[TimeControl "180+1"]
[Date "2021.05.04"]
[WhiteClock "0:01:30"]
[BlackClock "0:01:37"]

1. e4 {[%clk 0:03:00]}  d6 {[%clk 0:02:59]} 2. d4 {[%clk 0:03:00]}  Nf6 {[%clk 0:02:59]} 3. Nc3 {[%clk 0:03:00]}  g6 {[%clk 0:03:00]} 4. Nf3 {[%clk 0:03:00]}  Bg7 {[%clk 0:03:01]} 5. h3 {[%clk 0:03:00]}  O-O {[%clk 0:02:59]} 6. Be3 {[%clk 0:03:01]}  c6 {[%clk 0:02:59]} 7. a4 {[%clk 0:03:01]}  b6 {[%clk 0:03:00]} 8. Bd3 {[%clk 0:02:59]}  Bb7 {[%clk 0:02:59]} 9. O-O {[%clk 0:02:59]}  Nbd7 {[%clk 0:02:58]} 10. e5 {[%clk 0:02:55]}  dxe5 {[%clk 0:02:54]} 11. dxe5 {[%clk 0:02:55]}  Nd5 {[%clk 0:02:54]} 12. Nxd5 {[%clk 0:02:49]}  cxd5 {[%clk 0:02:54]} 13. Bd4 {[%clk 0:02:49]}  Nc5 {[%clk 0:02:52]} 14. c3 {[%clk 0:02:48]}  Ne6 {[%clk 0:02:49]} 15. Re1 {[%clk 0:02:40]}  Qc7 {[%clk 0:02:44]} 16. Qe2 {[%clk 0:02:40]}  Rfd8 {[%clk 0:02:35]} 17. Qe3 {[%clk 0:02:35]}  Bc6 {[%clk 0:02:30]} 18. Bf1 {[%clk 0:02:31]}  Rab8 {[%clk 0:02:28]} 19. b4 {[%clk 0:02:29]}  a5 {[%clk 0:02:22]} 20. b5 {[%clk 0:02:26]}  Ba8 {[%clk 0:02:19]} 21. Rac1 {[%clk 0:02:23]}  Rbc8 {[%clk 0:02:14]} 22. Bxb6 {[%clk 0:02:21]}  d4 {[%clk 0:02:08]} 23. Bxc7 {[%clk 0:02:20]}  dxe3 {[%clk 0:02:08]} 24. Bxd8 {[%clk 0:02:20]}  exf2+ {[%clk 0:02:08]} 25. Kxf2 {[%clk 0:02:21]}  Rxd8 {[%clk 0:02:08]} 26. Red1 {[%clk 0:02:08]}  Rc8 {[%clk 0:02:07]} 27. Rd7 {[%clk 0:02:08]}  Bxf3 {[%clk 0:02:03]} 28. Kxf3 {[%clk 0:02:06]}  Bxe5 {[%clk 0:02:03]} 29. Rxe7 {[%clk 0:02:01]}  Bf6 {[%clk 0:01:54]} 30. Ra7 {[%clk 0:01:58]}  Nd4+ {[%clk 0:01:51]} 31. Ke4 {[%clk 0:01:40]}  Nb3 {[%clk 0:01:50]} 32. Rd1 {[%clk 0:01:36]}  Bxc3 {[%clk 0:01:49]} 33. b6 {[%clk 0:01:34]}  Rb8 {[%clk 0:01:48]} 34. Bc4 {[%clk 0:01:33]}  Rxb6 {[%clk 0:01:37]} 35. Bxf7+ {[%clk 0:01:30]} 1-0


[Site "https://www.chess.com"]

[Event "Titled Tuesday Blitz May 4 2021"]
[White "Vivas Zamora, Fabian Ernesto"]
[Black "Stromboli, Ettore"]
[WhiteFideId "3902480"]
[BlackFideId "813761"]
[WhiteElo "1966"]
[BlackElo "2414"]
[Result "1-0"]
[Round "07"]
[TimeControl "180+1"]
[Date "2021.05.04"]
[WhiteClock "0:00:40"]
[BlackClock "0:00:02"]

1. c4 {[%clk 0:03:00]}  b6 {[%clk 0:02:04]} 2. Nc3 {[%clk 0:02:58]}  Bb7 {[%clk 0:02:05]} 3. e4 {[%clk 0:02:58]}  e6 {[%clk 0:02:03]} 4. g3 {[%clk 0:02:53]}  f5 {[%clk 0:02:03]} 5. Bg2 {[%clk 0:02:52]}  Nf6 {[%clk 0:02:04]} 6. d3 {[%clk 0:02:50]}  Bb4 {[%clk 0:02:02]} 7. Bd2 {[%clk 0:02:23]}  O-O {[%clk 0:01:41]} 8. Qc2 {[%clk 0:02:08]}  fxe4 {[%clk 0:01:24]} 9. dxe4 {[%clk 0:02:06]}  d5 {[%clk 0:01:21]} 10. cxd5 {[%clk 0:02:02]}  exd5 {[%clk 0:01:17]} 11. Nge2 {[%clk 0:01:46]}  dxe4 {[%clk 0:00:55]} 12. Qb3+ {[%clk 0:01:42]}  Kh8 {[%clk 0:00:55]} 13. Qxb4 {[%clk 0:01:42]}  e3 {[%clk 0:00:54]} 14. Bxb7 {[%clk 0:01:24]}  Qxd2+ {[%clk 0:00:47]} 15. Kf1 {[%clk 0:01:24]}  c5 {[%clk 0:00:46]} 16. Qf4 {[%clk 0:01:18]}  Nfd7 {[%clk 0:00:40]} 17. Rd1 {[%clk 0:01:01]}  Qxb2 {[%clk 0:00:20]} 18. Qxe3 {[%clk 0:01:00]}  Nf6 {[%clk 0:00:17]} 19. Bxa8 {[%clk 0:00:56]}  Ng4 {[%clk 0:00:17]} 20. Qd2 {[%clk 0:00:51]}  Rxf2+ {[%clk 0:00:10]} 21. Ke1 {[%clk 0:00:50]}  Qxd2+ {[%clk 0:00:08]} 22. Rxd2 {[%clk 0:00:51]}  Rf8 {[%clk 0:00:08]} 23. Rf1 {[%clk 0:00:48]}  Re8 {[%clk 0:00:06]} 24. Nd5 {[%clk 0:00:42]}  Na6 {[%clk 0:00:05]} 25. Bb7 {[%clk 0:00:40]}  Nb4 {[%clk 0:00:04]} 26. Nxb4 {[%clk 0:00:40]}  cxb4 {[%clk 0:00:05]} 27. Bc6 {[%clk 0:00:40]}  Rc8 {[%clk 0:00:03]} 28. Bd7 {[%clk 0:00:40]}  Rc1+ {[%clk 0:00:02]} 29. Nxc1 {[%clk 0:00:40]} 1-0


[Site "https://www.chess.com"]

[Event "Titled Tuesday Blitz May 4 2021"]
[White "Wu, Christopher"]
[Black "Ravi, Thandalam Shanmugam"]
[WhiteFideId "2040875"]
[BlackFideId "5000238"]
[WhiteElo "2612"]
[BlackElo "2215"]
[Result "1-0"]
[Round "07"]
[TimeControl "180+1"]
[Date "2021.05.04"]
[WhiteClock "0:01:57"]
[BlackClock "0:00:03"]

1. e4 {[%clk 0:03:00]}  e5 {[%clk 0:02:58]} 2. Nf3 {[%clk 0:03:00]}  Nc6 {[%clk 0:02:58]} 3. Bb5 {[%clk 0:03:01]}  a6 {[%clk 0:02:58]} 4. Ba4 {[%clk 0:03:01]}  Nf6 {[%clk 0:02:57]} 5. O-O {[%clk 0:02:59]}  Be7 {[%clk 0:02:52]} 6. d3 {[%clk 0:02:59]}  b5 {[%clk 0:02:52]} 7. Bb3 {[%clk 0:02:59]}  d6 {[%clk 0:02:52]} 8. a3 {[%clk 0:02:59]}  O-O {[%clk 0:02:50]} 9. Nc3 {[%clk 0:02:59]}  Bg4 {[%clk 0:02:46]} 10. Be3 {[%clk 0:02:58]}  Nd4 {[%clk 0:02:42]} 11. Bxd4 {[%clk 0:02:58]}  exd4 {[%clk 0:02:42]} 12. Nd5 {[%clk 0:02:59]}  c6 {[%clk 0:02:28]} 13. Nxe7+ {[%clk 0:02:52]}  Qxe7 {[%clk 0:02:28]} 14. h3 {[%clk 0:02:52]}  Bxf3 {[%clk 0:02:19]} 15. Qxf3 {[%clk 0:02:53]}  Nd7 {[%clk 0:02:18]} 16. Qg3 {[%clk 0:02:52]}  Kh8 {[%clk 0:02:00]} 17. f4 {[%clk 0:02:51]}  f5 {[%clk 0:01:57]} 18. Rae1 {[%clk 0:02:47]}  Nc5 {[%clk 0:01:27]} 19. exf5 {[%clk 0:02:33]}  Qf6 {[%clk 0:01:27]} 20. Be6 {[%clk 0:02:33]}  a5 {[%clk 0:01:14]} 21. Qf3 {[%clk 0:02:25]}  d5 {[%clk 0:01:01]} 22. g4 {[%clk 0:02:24]}  h6 {[%clk 0:00:54]} 23. Qg3 {[%clk 0:02:19]}  Rae8 {[%clk 0:00:53]} 24. g5 {[%clk 0:02:08]}  Qd8 {[%clk 0:00:53]} 25. Re5 {[%clk 0:02:03]}  Nxe6 {[%clk 0:00:24]} 26. fxe6 {[%clk 0:02:04]}  Qd6 {[%clk 0:00:13]} 27. Rfe1 {[%clk 0:02:04]}  Re7 {[%clk 0:00:11]} 28. Kh1 {[%clk 0:02:01]}  Rfe8 {[%clk 0:00:05]} 29. gxh6 {[%clk 0:01:56]}  gxh6 {[%clk 0:00:04]} 30. Qg6 {[%clk 0:01:57]}  Rh7 {[%clk 0:00:03]} 31. Qxe8+ {[%clk 0:01:57]} 1-0


[Site "https://www.chess.com"]

[Event "Titled Tuesday Blitz May 4 2021"]
[White "Zia, Tahsin Tajwar"]
[Black "Vlassov, Nikolai"]
[WhiteFideId "10211888"]
[BlackFideId "4103360"]
[WhiteElo "1678"]
[BlackElo "2407"]
[Result "0-1"]
[Round "07"]
[TimeControl "180+1"]
[Date "2021.05.04"]
[WhiteClock "0:00:04"]
[BlackClock "0:00:18"]

1. d4 {[%clk 0:02:14]}  Nf6 {[%clk 0:02:58]} 2. Bf4 {[%clk 0:02:11]}  g6 {[%clk 0:02:57]} 3. Nc3 {[%clk 0:02:06]}  d5 {[%clk 0:02:55]} 4. e3 {[%clk 0:01:46]}  c6 {[%clk 0:02:55]} 5. Nf3 {[%clk 0:01:37]}  b5 {[%clk 0:02:55]} 6. a3 {[%clk 0:01:33]}  a5 {[%clk 0:02:55]} 7. h4 {[%clk 0:01:31]}  h5 {[%clk 0:02:53]} 8. Ne5 {[%clk 0:01:31]}  Nfd7 {[%clk 0:02:47]} 9. Bd3 {[%clk 0:01:29]}  Nxe5 {[%clk 0:02:27]} 10. Bxe5 {[%clk 0:01:21]}  Rg8 {[%clk 0:02:28]} 11. Ne2 {[%clk 0:01:15]}  Nd7 {[%clk 0:02:27]} 12. Bg3 {[%clk 0:01:14]}  Bg7 {[%clk 0:02:18]} 13. Nf4 {[%clk 0:01:08]}  e5 {[%clk 0:02:15]} 14. dxe5 {[%clk 0:01:01]}  Nxe5 {[%clk 0:02:15]} 15. Be2 {[%clk 0:00:51]}  Ke7 {[%clk 0:02:08]} 16. Nd3 {[%clk 0:00:32]}  Nxd3+ {[%clk 0:02:06]} 17. cxd3 {[%clk 0:00:26]}  Bxb2 {[%clk 0:02:02]} 18. Rb1 {[%clk 0:00:13]}  Bc3+ {[%clk 0:02:01]} 19. Kf1 {[%clk 0:00:13]}  b4 {[%clk 0:02:01]} 20. Qa4 {[%clk 0:00:12]}  Bd7 {[%clk 0:01:56]} 21. Qc2 {[%clk 0:00:09]}  Re8 {[%clk 0:01:53]} 22. d4 {[%clk 0:00:09]}  Bf5 {[%clk 0:01:36]} 23. Bd3 {[%clk 0:00:09]}  Bxd3+ {[%clk 0:01:36]} 24. Qxd3 {[%clk 0:00:09]}  Kf8 {[%clk 0:01:34]} 25. Be5 {[%clk 0:00:07]}  f6 {[%clk 0:01:30]} 26. Bf4 {[%clk 0:00:06]}  Kf7 {[%clk 0:01:31]} 27. g4 {[%clk 0:00:06]}  hxg4 {[%clk 0:01:30]} 28. h5 {[%clk 0:00:07]}  Rg8 {[%clk 0:01:21]} 29. hxg6+ {[%clk 0:00:06]}  Rxg6 {[%clk 0:01:21]} 30. Rh7+ {[%clk 0:00:06]}  Rg7 {[%clk 0:01:22]} 31. Kg2 {[%clk 0:00:05]}  Qg8 {[%clk 0:01:15]} 32. Rbh1 {[%clk 0:00:05]}  Ke6 {[%clk 0:01:09]} 33. R1h5 {[%clk 0:00:04]}  Rxh7 {[%clk 0:01:08]} 34. Qf5+ {[%clk 0:00:04]}  Ke7 {[%clk 0:00:43]} 35. Rxh7+ {[%clk 0:00:05]}  Qxh7 {[%clk 0:00:43]} 36. Qxh7+ {[%clk 0:00:05]}  Ke6 {[%clk 0:00:44]} 37. axb4 {[%clk 0:00:04]}  axb4 {[%clk 0:00:43]} 38. Qb7 {[%clk 0:00:03]}  Ra1 {[%clk 0:00:37]} 39. Qxc6+ {[%clk 0:00:04]}  Kf7 {[%clk 0:00:37]} 40. Qd7+ {[%clk 0:00:04]}  Kg6 {[%clk 0:00:36]} 41. Qxg4+ {[%clk 0:00:05]}  Kf7 {[%clk 0:00:36]} 42. Qd7+ {[%clk 0:00:05]}  Kg6 {[%clk 0:00:37]} 43. Qe8+ {[%clk 0:00:05]}  Kg7 {[%clk 0:00:37]} 44. Qe7+ {[%clk 0:00:05]}  Kg6 {[%clk 0:00:37]} 45. Qe8+ {[%clk 0:00:06]}  Kg7 {[%clk 0:00:37]} 46. Bd6 {[%clk 0:00:06]}  Ra7 {[%clk 0:00:27]} 47. Bf8+ {[%clk 0:00:06]}  Kh7 {[%clk 0:00:28]} 48. Qh5+ {[%clk 0:00:06]}  Kg8 {[%clk 0:00:28]} 49. Bc5 {[%clk 0:00:05]}  Rb7 {[%clk 0:00:27]} 50. Kf3 {[%clk 0:00:04]}  b3 {[%clk 0:00:27]} 51. Qe8+ {[%clk 0:00:05]}  Kg7 {[%clk 0:00:25]} 52. Qc6 {[%clk 0:00:04]}  Rf7 {[%clk 0:00:21]} 53. Qb5 {[%clk 0:00:03]}  b2 {[%clk 0:00:21]} 54. Bd6 {[%clk 0:00:03]}  Kg6 {[%clk 0:00:18]} 55. Qb3 {[%clk 0:00:03]}  Rh7 {[%clk 0:00:17]} 56. Qc2+ {[%clk 0:00:03]}  Kg7 {[%clk 0:00:17]} 57. Bg3 {[%clk 0:00:03]}  Rh1 {[%clk 0:00:17]} 58. Qa4 {[%clk 0:00:01]}  b1=Q {[%clk 0:00:17]} 59. Qd7+ {[%clk 0:00:02]}  Kg6 {[%clk 0:00:17]} 60. Qg4+ {[%clk 0:00:03]}  Kh6 {[%clk 0:00:18]} 61. Bf4+ {[%clk 0:00:03]}  Kh7 {[%clk 0:00:18]} 62. Qd7+ {[%clk 0:00:03]}  Kg8 {[%clk 0:00:18]} 63. Qe8+ {[%clk 0:00:03]}  Kg7 {[%clk 0:00:18]} 64. Qe7+ {[%clk 0:00:04]}  Kg6 {[%clk 0:00:19]} 65. Qe8+ {[%clk 0:00:04]}  Kf5 {[%clk 0:00:19]} 66. Qd7+ {[%clk 0:00:04]}  Kg6 {[%clk 0:00:19]} 67. Qe8+ {[%clk 0:00:04]}  Kg7 {[%clk 0:00:19]} 68. Qe7+ {[%clk 0:00:04]}  Kg8 {[%clk 0:00:19]} 69. Qe8+ {[%clk 0:00:04]}  Kh7 {[%clk 0:00:19]} 70. Qf7+ {[%clk 0:00:04]}  Kh8 {[%clk 0:00:19]} 71. Qxf6+ {[%clk 0:00:04]}  Kg8 {[%clk 0:00:19]} 72. Qg6+ {[%clk 0:00:04]}  Qxg6 {[%clk 0:00:18]} 0-1


[Site "https://www.chess.com"]

[Event "Titled Tuesday Blitz May 4 2021"]
[White "Zverev, Lev"]
[Black "Region_07"]
[WhiteFideId "24250775"]
[WhiteElo "2107"]
[BlackElo "2380"]
[Result "1-0"]
[Round "07"]
[TimeControl "180+1"]
[Date "2021.05.04"]
[WhiteClock "0:00:20"]
[BlackClock "0:00:01"]

1. e4 {[%clk 0:03:00]}  Nc6 {[%clk 0:02:50]} 2. Nf3 {[%clk 0:02:56]}  f5 {[%clk 0:02:49]} 3. exf5 {[%clk 0:02:54]}  d5 {[%clk 0:02:49]} 4. d4 {[%clk 0:02:54]}  Bxf5 {[%clk 0:02:49]} 5. Bd3 {[%clk 0:02:54]}  Bg4 {[%clk 0:02:49]} 6. h3 {[%clk 0:02:41]}  Bxf3 {[%clk 0:02:50]} 7. Qxf3 {[%clk 0:02:41]}  Nf6 {[%clk 0:02:50]} 8. c3 {[%clk 0:02:40]}  e5 {[%clk 0:02:50]} 9. dxe5 {[%clk 0:02:39]}  Nxe5 {[%clk 0:02:51]} 10. Qe2 {[%clk 0:02:40]}  Qe7 {[%clk 0:02:51]} 11. Bc2 {[%clk 0:02:40]}  Nc4 {[%clk 0:02:47]} 12. Qxe7+ {[%clk 0:02:36]}  Bxe7 {[%clk 0:02:48]} 13. O-O {[%clk 0:02:37]}  O-O {[%clk 0:02:46]} 14. Nd2 {[%clk 0:02:34]}  Nxd2 {[%clk 0:02:43]} 15. Bxd2 {[%clk 0:02:35]}  Bc5 {[%clk 0:02:44]} 16. Rae1 {[%clk 0:02:33]}  c6 {[%clk 0:02:44]} 17. Be3 {[%clk 0:02:31]}  Bb6 {[%clk 0:02:41]} 18. Bf4 {[%clk 0:02:27]}  Rae8 {[%clk 0:02:34]} 19. Bg3 {[%clk 0:02:17]}  Nh5 {[%clk 0:02:01]} 20. Kh2 {[%clk 0:01:27]}  Nxg3 {[%clk 0:01:54]} 21. fxg3 {[%clk 0:01:28]}  Rxe1 {[%clk 0:01:47]} 22. Rxe1 {[%clk 0:01:29]}  Rf2 {[%clk 0:01:45]} 23. Bb3 {[%clk 0:01:22]}  Rxb2 {[%clk 0:01:28]} 24. Re7 {[%clk 0:01:21]}  Rb1 {[%clk 0:00:58]} 25. h4 {[%clk 0:01:05]}  h5 {[%clk 0:00:52]} 26. Rxb7 {[%clk 0:01:03]}  Bg1+ {[%clk 0:00:46]} 27. Kh3 {[%clk 0:01:02]}  Rc1 {[%clk 0:00:38]} 28. Rc7 {[%clk 0:00:54]}  Bb6 {[%clk 0:00:32]} 29. Rc8+ {[%clk 0:00:52]}  Kf7 {[%clk 0:00:27]} 30. Kh2 {[%clk 0:00:44]}  Rxc3 {[%clk 0:00:24]} 31. Bxd5+ {[%clk 0:00:42]}  Ke7 {[%clk 0:00:21]} 32. Rxc6 {[%clk 0:00:41]}  Rd3 {[%clk 0:00:20]} 33. Bf3 {[%clk 0:00:40]}  Ra3 {[%clk 0:00:17]} 34. Rg6 {[%clk 0:00:36]}  Rxa2 {[%clk 0:00:15]} 35. Rxg7+ {[%clk 0:00:36]}  Kf6 {[%clk 0:00:16]} 36. Rh7 {[%clk 0:00:34]}  Rb2 {[%clk 0:00:12]} 37. Rxh5 {[%clk 0:00:32]}  a5 {[%clk 0:00:13]} 38. Bc6 {[%clk 0:00:28]}  Rb4 {[%clk 0:00:10]} 39. Rb5 {[%clk 0:00:26]}  Rxb5 {[%clk 0:00:10]} 40. Bxb5 {[%clk 0:00:27]}  Bc7 {[%clk 0:00:08]} 41. Kh3 {[%clk 0:00:27]}  Kg6 {[%clk 0:00:08]} 42. g4 {[%clk 0:00:27]}  Bf4 {[%clk 0:00:07]} 43. Bd3+ {[%clk 0:00:26]}  Kh6 {[%clk 0:00:07]} 44. Bc2 {[%clk 0:00:26]}  Be3 {[%clk 0:00:06]} 45. g5+ {[%clk 0:00:27]}  Kg7 {[%clk 0:00:06]} 46. Kg4 {[%clk 0:00:26]}  Bd2 {[%clk 0:00:05]} 47. h5 {[%clk 0:00:26]}  Bc1 {[%clk 0:00:05]} 48. h6+ {[%clk 0:00:27]}  Kh8 {[%clk 0:00:04]} 49. Kh5 {[%clk 0:00:28]}  a4 {[%clk 0:00:02]} 50. g6 {[%clk 0:00:27]}  Bb2 {[%clk 0:00:02]} 51. Bxa4 {[%clk 0:00:27]}  Kg8 {[%clk 0:00:01]} 52. Bb3+ {[%clk 0:00:24]}  Kh8 {[%clk 0:00:01]} 53. Kg4 {[%clk 0:00:20]} 1-0


[Site "https://www.chess.com"]

[Event "Titled Tuesday Blitz May 4 2021"]
[White "katchesskat"]
[Black "davigator"]
[WhiteElo "2292"]
[BlackElo "2409"]
[Result "1-0"]
[Round "07"]
[TimeControl "180+1"]
[Date "2021.05.04"]
[WhiteClock "0:00:11"]
[BlackClock "0:00:05"]

1. c4 {[%clk 0:03:00]}  e5 {[%clk 0:02:57]} 2. e3 {[%clk 0:03:00]}  Nf6 {[%clk 0:02:55]} 3. a3 {[%clk 0:03:00]}  d5 {[%clk 0:02:55]} 4. cxd5 {[%clk 0:03:00]}  Nxd5 {[%clk 0:02:54]} 5. Qc2 {[%clk 0:03:01]}  Nc6 {[%clk 0:02:51]} 6. Nf3 {[%clk 0:03:01]}  Be7 {[%clk 0:02:49]} 7. b4 {[%clk 0:03:01]}  Bd6 {[%clk 0:02:38]} 8. Bb2 {[%clk 0:03:00]}  f6 {[%clk 0:02:27]} 9. Bc4 {[%clk 0:02:55]}  Nb6 {[%clk 0:02:27]} 10. Bb3 {[%clk 0:02:54]}  Bg4 {[%clk 0:02:27]} 11. Nc3 {[%clk 0:02:52]}  Bh5 {[%clk 0:02:26]} 12. Nh4 {[%clk 0:02:51]}  Qd7 {[%clk 0:02:25]} 13. h3 {[%clk 0:02:45]}  Bf7 {[%clk 0:02:21]} 14. Nf3 {[%clk 0:02:26]}  O-O {[%clk 0:02:18]} 15. Ne4 {[%clk 0:02:21]}  Nd5 {[%clk 0:02:12]} 16. Rc1 {[%clk 0:02:19]}  Nce7 {[%clk 0:02:07]} 17. Bc4 {[%clk 0:02:14]}  c6 {[%clk 0:02:06]} 18. Nxd6 {[%clk 0:02:13]}  Qxd6 {[%clk 0:02:05]} 19. Bd3 {[%clk 0:02:11]}  g6 {[%clk 0:02:05]} 20. h4 {[%clk 0:02:11]}  Rad8 {[%clk 0:01:56]} 21. Ke2 {[%clk 0:02:06]}  Rfe8 {[%clk 0:01:35]} 22. h5 {[%clk 0:02:04]}  Nf4+ {[%clk 0:01:30]} 23. exf4 {[%clk 0:01:58]}  exf4 {[%clk 0:01:31]} 24. Bc4 {[%clk 0:01:42]}  Nd5+ {[%clk 0:01:30]} 25. Kf1 {[%clk 0:01:41]}  b5 {[%clk 0:01:29]} 26. Bb3 {[%clk 0:01:36]}  g5 {[%clk 0:01:27]} 27. h6 {[%clk 0:01:17]}  Rc8 {[%clk 0:01:23]} 28. Kg1 {[%clk 0:01:08]}  Bg6 {[%clk 0:01:16]} 29. Qc5 {[%clk 0:01:06]}  Qd8 {[%clk 0:01:00]} 30. Nd4 {[%clk 0:01:02]}  Qd7 {[%clk 0:00:52]} 31. Nxc6 {[%clk 0:01:00]}  Bf7 {[%clk 0:00:48]} 32. Kh2 {[%clk 0:00:50]}  Rc7 {[%clk 0:00:33]} 33. Qxb5 {[%clk 0:00:45]}  Rec8 {[%clk 0:00:29]} 34. Nd4 {[%clk 0:00:45]}  Qg4 {[%clk 0:00:26]} 35. Rxc7 {[%clk 0:00:35]}  Rxc7 {[%clk 0:00:23]} 36. Re1 {[%clk 0:00:32]}  f3 {[%clk 0:00:19]} 37. Nxf3 {[%clk 0:00:30]}  Qf4+ {[%clk 0:00:19]} 38. Kg1 {[%clk 0:00:28]}  g4 {[%clk 0:00:19]} 39. Bxd5 {[%clk 0:00:25]}  gxf3 {[%clk 0:00:16]} 40. Bxf3 {[%clk 0:00:24]}  Rc8 {[%clk 0:00:15]} 41. Qd7 {[%clk 0:00:23]}  Rf8 {[%clk 0:00:14]} 42. Qg4+ {[%clk 0:00:22]}  Qxg4 {[%clk 0:00:13]} 43. Bxg4 {[%clk 0:00:23]}  Rd8 {[%clk 0:00:12]} 44. Bc3 {[%clk 0:00:20]}  Kf8 {[%clk 0:00:12]} 45. Bxf6 {[%clk 0:00:19]}  Rxd2 {[%clk 0:00:11]} 46. Bg7+ {[%clk 0:00:19]}  Kg8 {[%clk 0:00:10]} 47. Rc1 {[%clk 0:00:19]}  Bd5 {[%clk 0:00:09]} 48. Bh5 {[%clk 0:00:15]}  Bb7 {[%clk 0:00:06]} 49. Rc7 {[%clk 0:00:14]}  Rd5 {[%clk 0:00:05]} 50. Bf7# {[%clk 0:00:11]} 1-0


[Site "https://www.chess.com"]

[Event "Titled Tuesday Blitz May 4 2021"]
[White "zmeeed67"]
[Black "Kazakouski, Valery"]
[BlackFideId "13507443"]
[WhiteElo "2558"]
[BlackElo "2546"]
[Result "0-1"]
[Round "07"]
[TimeControl "180+1"]
[Date "2021.05.04"]
[WhiteClock "0:00:19"]
[BlackClock "0:00:46"]

1. d4 {[%clk 0:03:00]}  Nf6 {[%clk 0:03:00]} 2. c4 {[%clk 0:03:01]}  e6 {[%clk 0:03:00]} 3. Nc3 {[%clk 0:03:01]}  Bb4 {[%clk 0:03:00]} 4. f3 {[%clk 0:03:02]}  c5 {[%clk 0:03:00]} 5. d5 {[%clk 0:03:02]}  O-O {[%clk 0:03:00]} 6. e4 {[%clk 0:03:02]}  exd5 {[%clk 0:03:00]} 7. cxd5 {[%clk 0:03:02]}  d6 {[%clk 0:03:01]} 8. Ne2 {[%clk 0:03:03]}  Re8 {[%clk 0:02:59]} 9. Ng3 {[%clk 0:03:03]}  Nbd7 {[%clk 0:02:59]} 10. Be2 {[%clk 0:03:02]}  Ne5 {[%clk 0:03:00]} 11. O-O {[%clk 0:03:00]}  a6 {[%clk 0:02:55]} 12. a4 {[%clk 0:03:00]}  Bd7 {[%clk 0:02:54]} 13. f4 {[%clk 0:02:45]}  Ng6 {[%clk 0:02:50]} 14. Bf3 {[%clk 0:02:20]}  c4 {[%clk 0:02:45]} 15. Kh1 {[%clk 0:02:19]}  Bc5 {[%clk 0:02:42]} 16. Qc2 {[%clk 0:02:01]}  h6 {[%clk 0:02:35]} 17. Bd2 {[%clk 0:01:55]}  b5 {[%clk 0:02:33]} 18. axb5 {[%clk 0:01:54]}  axb5 {[%clk 0:02:33]} 19. Rxa8 {[%clk 0:01:26]}  Qxa8 {[%clk 0:02:34]} 20. Nd1 {[%clk 0:01:19]}  Nh4 {[%clk 0:02:17]} 21. Be2 {[%clk 0:01:06]}  Nxd5 {[%clk 0:01:19]} 22. exd5 {[%clk 0:00:59]}  Rxe2 {[%clk 0:01:19]} 23. Nc3 {[%clk 0:00:27]}  Rxg2 {[%clk 0:01:06]} 24. Qd1 {[%clk 0:00:25]}  b4 {[%clk 0:01:02]} 25. Nce4 {[%clk 0:00:22]}  Qxd5 {[%clk 0:00:58]} 26. Qe1 {[%clk 0:00:19]}  Rxd2 {[%clk 0:00:46]} 0-1


[Site "https://www.chess.com"]